bitfinex/quotes_ETHUSD_20230105
["timestamp","ask_amount","ask_price","bid_price","bid_amount"]
[1672892693627,14.71171574,1254.9,1254.8,0.51570245]
[1672892694254,10.53287122,1254.9,1254.8,0.51570245]
[1672892695791,4.67287122,1254.9,1254.8,0.51570245]
[1672892696099,4.61297521,1254.9,1254.8,0.51570245]
[1672892696736,4.5,1254.9,1254.8,0.51570245]
[1672892697956,20.81484207,1255.0,1254.8,0.51570245]
[1672892699230,4.5,1254.9,1254.8,0.51570245]
[1672892700415,28.78297207,1255.0,1254.8,0.51570245]
[1672892700791,4.5,1254.9,1254.8,0.51570245]
[1672892701336,7.82829721,1254.9,1254.8,0.51570245]
[1672892701547,3.38819322,1254.9,1254.8,0.51570245]
[1672892701774,3.32829721,1254.9,1254.8,0.51570245]
[1672892715503,3.32829721,1254.9,1254.8,0.51290155]
[1672892715709,28.78298207,1255.0,1254.8,0.51290155]
[1672892726156,4.5,1254.9,1254.8,0.51290155]
[1672892726304,28.78298207,1255.0,1254.8,0.51290155]
[1672892726305,20.81484207,1255.0,1254.8,0.51290155]
[1672892727369,4.5,1254.9,1254.8,0.51290155]
[1672892727623,20.81484207,1255.0,1254.8,0.51290155]
[1672892731063,18.91584207,1255.0,1254.8,0.51290155]
[1672892734109,4.5,1254.9,1254.8,0.51290155]
[1672892734899,18.91584207,1255.0,1254.8,0.51290155]
[1672892736061,4.5,1254.9,1254.8,0.51290155]
[1672892736930,6.84158421,1254.9,1254.8,0.51290155]
[1672892737146,6.90148022,1254.9,1254.8,0.51290155]
[1672892737579,2.40148022,1254.9,1254.8,0.51290155]
[1672892737813,10.31034421,1254.9,1254.8,0.51290155]
[1672892737987,10.37024022,1254.9,1254.8,0.51290155]
[1672892739762,2.40148022,1254.9,1254.8,0.51290155]
[1672892739975,2.34158421,1254.9,1254.8,0.51290155]
[1672892740315,2.34158421,1254.9,1254.8,0.50982286]
[1672892740505,14.81034421,1254.9,1254.8,0.50982286]
[1672892740713,14.87024022,1254.9,1254.8,0.50982286]
[1672892740976,2.40148022,1254.9,1254.8,0.50982286]
[1672892741296,2.34158421,1254.9,1254.8,0.50982286]
[1672892749890,2.39158421,1254.9,1254.8,0.50982286]
[1672892750163,2.34158421,1254.9,1254.8,0.50982286]
[1672892763909,6.84158421,1254.9,1254.8,0.50599124]
[1672892764072,6.90148022,1254.9,1254.8,0.50599124]
[1672892764290,6.95148022,1254.9,1254.8,0.50599124]
[1672892764603,6.90148022,1254.9,1254.8,0.50599124]
[1672892765788,6.58032474,1254.9,1254.8,0.50599124]
[1672892779338,6.57756525,1254.9,1254.8,0.50599124]
[1672892786854,6.62756525,1254.9,1254.8,0.50599124]
[1672892787217,6.57756525,1254.9,1254.8,0.50599124]
[1672892794352,4.23874053,1254.9,1254.8,0.50599124]
[1672892794645,4.17884452,1254.9,1254.8,0.50599124]
[1672892795213,4.22884452,1254.9,1254.8,0.50599124]
[1672892797201,4.17884452,1254.9,1254.8,0.50599124]
[1672892800799,8.67884452,1254.9,1254.8,0.50345899]
[1672892801103,11.12488955,1254.9,1254.8,0.50345899]
[1672892801321,6.62488955,1254.9,1254.8,0.50345899]
[1672892804749,6.62488955,1254.9,1254.7,8.0256798]
[1672892804955,6.62488955,1254.9,1254.8,0.58746711]
[1672892815472,9.90169315,1254.9,1254.8,0.58746711]
[1672892815685,36.80797315,1254.9,1254.8,0.58746711]
[1672892817501,28.83921315,1254.9,1254.8,0.58746711]
[1672892818289,15.92480503,1254.9,1254.8,0.58746711]
[1672892818760,20.1077025,1254.9,1254.8,0.58746711]
[1672892819151,15.92480503,1254.9,1254.8,0.58746711]
[1672892819913,20.87045315,1254.9,1254.8,0.58746711]
[1672892820465,15.92480503,1254.9,1254.8,0.58746711]
[1672892822346,20.10690166,1254.9,1254.8,0.58746711]
[1672892823911,15.92480503,1254.9,1254.8,0.58746711]
[1672892824273,20.10634134,1254.9,1254.8,0.58746711]
[1672892824434,15.92480503,1254.9,1254.8,0.58746711]
[1672892824795,20.10633936,1254.9,1254.8,0.58746711]
[1672892825263,15.92480503,1254.9,1254.8,0.58479354]
[1672892825477,20.10623593,1254.9,1254.8,0.58479354]
[1672892825691,20.10622515,1254.9,1254.8,0.58479354]
[1672892825900,28.11271454,1254.9,1254.8,0.58479354]
[1672892826367,32.29375764,1254.9,1254.8,0.58479354]
[1672892826743,28.11271454,1254.9,1254.8,0.58479354]
[1672892827778,32.29364534,1254.9,1254.8,0.58479354]
[1672892828152,28.11271454,1254.9,1254.8,0.58479354]
[1672892828322,32.29336284,1254.9,1254.8,0.58479354]
[1672892829771,28.11271454,1254.9,1254.8,0.58479354]
[1672892830228,33.11271454,1254.9,1254.8,0.58479354]
[1672892830823,37.29295442,1254.9,1254.8,0.58479354]
[1672892831671,38.05836266,1254.9,1254.8,0.58479354]
[1672892832523,33.11271454,1254.9,1254.8,0.58479354]
[1672892832722,38.05836266,1254.9,1254.8,0.58479354]
[1672892835300,46.02712266,1254.9,1254.8,0.58479354]
[1672892835891,38.05836266,1254.9,1254.8,0.58479354]
[1672892836079,33.05836266,1254.9,1254.8,0.58479354]
[1672892836554,42.92864505,1254.9,1254.8,0.58479354]
[1672892836704,35.40425117,1254.9,1254.8,0.58479354]
[1672892836918,40.34140664,1254.9,1254.8,0.58479354]
[1672892837240,35.40425117,1254.9,1254.8,0.58479354]
[1672892837592,48.3102093,1254.9,1254.8,0.58479354]
[1672892837767,43.37301117,1254.9,1254.8,0.58479354]
[1672892837969,49.30900545,1254.9,1254.8,0.58479354]
[1672892838229,48.30911005,1254.9,1254.8,0.58479354]
[1672892840769,46.39911005,1254.9,1254.8,0.58479354]
[1672892841658,38.43035005,1254.9,1254.8,0.58479354]
[1672892842329,38.04881342,1254.9,1254.8,0.58479354]
[1672892842544,33.11271454,1254.9,1254.8,0.58479354]
[1672892843235,38.04881342,1254.9,1254.8,0.58479354]
[1672892844067,46.01757342,1254.9,1254.8,0.58479354]
[1672892846819,46.01757342,1254.9,1254.8,0.58213815]
[1672892847692,46.01357342,1254.9,1254.8,0.58213815]
[1672892851280,41.07747454,1254.9,1254.8,0.58213815]
[1672892851890,38.04791311,1254.9,1254.8,0.58213815]
[1672892854203,33.10871454,1254.9,1254.8,0.58213815]
[1672892854431,41.07747454,1254.9,1254.8,0.58213815]
[1672892854979,33.10871454,1254.9,1254.8,0.58213815]
[1672892855294,38.04957913,1254.9,1254.8,0.58213815]
[1672892855673,33.10871454,1254.9,1254.8,0.58213815]
[1672892856033,46.0182691,1254.9,1254.8,0.58213815]
[1672892859136,38.0495091,1254.9,1254.8,0.58213815]
[1672892860822,46.0182691,1254.9,1254.8,0.58213815]
[1672892861654,38.0495091,1254.9,1254.8,0.58213815]
[1672892862076,33.0495091,1254.9,1254.8,0.58213815]
[1672892863089,38.0495091,1254.9,1254.8,0.58213815]
[1672892864649,47.01346882,1254.9,1254.8,0.58213815]
[1672892867232,47.01346882,1254.9,1254.8,0.57883627]
[1672892870903,42.01346882,1254.9,1254.8,0.57883627]
[1672892871893,47.01346882,1254.9,1254.8,0.57883627]
[1672892872690,53.02218598,1254.9,1254.8,0.57883627]
[1672892872957,47.37602464,1254.9,1254.8,0.57883627]
[1672892874063,47.37295006,1254.9,1254.8,0.57883627]
[1672892880682,46.77495006,1254.9,1254.8,0.57883627]
[1672892880894,41.77495006,1254.9,1254.8,0.57883627]
[1672892881721,42.37295006,1254.9,1254.8,0.57883627]
[1672892882742,47.37295006,1254.9,1254.8,0.57883627]
[1672892884547,39.40419006,1254.9,1254.8,0.57883627]
[1672892884999,31.43543006,1254.9,1254.8,0.57883627]
[1672892886358,39.40419006,1254.9,1254.8,0.57883627]
[1672892886779,38.80619006,1254.9,1254.8,0.57883627]
[1672892887118,30.83743006,1254.9,1254.5,22.205555]
[1672892887329,4.18523705,1254.7,1254.5,26.1797385]
[1672892887516,4.18523705,1254.7,1254.5,20.5284385]
[1672892893093,4.58739819,1254.7,1254.5,20.5284385]
[1672892893767,9.08739819,1254.7,1254.5,20.5284385]
[1672892893974,9.1472942,1254.7,1254.5,20.5284385]
[1672892894512,4.6472942,1254.7,1254.5,20.52641763]
[1672892894706,4.58739819,1254.7,1254.5,20.52641763]
[1672892896341,4.58739819,1254.7,1254.5,28.49771763]
[1672892896591,0.40216114,1254.7,1254.5,20.52641763]
[1672892896823,0.40216114,1254.7,1254.5,28.49771763]
[1672892897035,4.24513306,1254.8,1254.5,28.49771763]
[1672892897207,4.58049515,1254.8,1254.5,28.49771763]
[1672892904579,0.3952581,1254.8,1254.5,28.49771763]
[1672892905114,8.74733249,1254.9,1254.5,28.49771763]
[1672892905518,4.24733249,1254.9,1254.5,28.49771763]
[1672892905736,4.18743648,1254.9,1254.5,28.49771763]
[1672892905930,11.56243648,1254.9,1254.5,28.49771763]
[1672892906143,11.62233249,1254.9,1254.5,28.49771763]
[1672892909758,7.12233249,1254.9,1254.5,28.49771763]
[1672892910093,0.05,1254.7,1254.5,28.49771763]
[1672892910311,11.62233249,1254.9,1254.5,28.49771763]
[1672892913998,7.12233249,1254.9,1254.5,28.49771763]
[1672892914185,0.05,1254.7,1254.5,28.49771763]
[1672892914514,11.62233249,1254.9,1254.5,28.49771763]
[1672892914727,16.6285279,1254.9,1254.5,28.49771763]
[1672892915366,24.5973279,1254.9,1254.5,28.49771763]
[1672892915507,24.5973279,1254.9,1254.5,28.49537368]
[1672892915719,4.5,1254.8,1254.5,28.49537368]
[1672892916888,13.7535279,1254.9,1254.5,28.49537368]
[1672892917460,21.7224179,1254.9,1254.5,28.49537368]
[1672892918035,13.7535279,1254.9,1254.5,28.49537368]
[1672892918495,4.5,1254.8,1254.5,28.49537368]
[1672892919544,14.8427,1254.8,1254.5,28.49537368]
[1672892919712,10.40259601,1254.8,1254.5,28.49537368]
[1672892922541,14.90259601,1254.8,1254.5,28.49537368]
[1672892922755,10.40259601,1254.8,1254.5,28.49537368]
[1672892923973,10.7988471,1254.8,1254.5,28.49537368]
[1672892924367,10.7988471,1254.8,1254.5,24.52119018]
[1672892924585,15.2988471,1254.8,1254.5,24.52119018]
[1672892925924,10.7988471,1254.8,1254.5,24.52119018]
[1672892926827,15.2988471,1254.8,1254.5,24.52119018]
[1672892927925,10.7988471,1254.8,1254.5,24.52119018]
[1672892928466,10.7988471,1254.8,1254.5,29.1704962]
[1672892930807,15.2988471,1254.8,1254.5,29.1704962]
[1672892931139,10.7988471,1254.8,1254.5,29.1704962]
[1672892932922,15.2988471,1254.8,1254.5,29.1704962]
[1672892933292,10.7988471,1254.8,1254.5,29.1704962]
[1672892935142,15.2988471,1254.8,1254.5,29.1704962]
[1672892935633,10.7988471,1254.8,1254.5,29.1704962]
[1672892936481,14.98408415,1254.8,1254.5,29.1704962]
[1672892937889,14.98408415,1254.8,1254.5,29.16753664]
[1672892938832,0.05,1254.7,1254.5,29.16753664]
[1672892938979,14.98408415,1254.8,1254.5,29.16753664]
[1672892940671,14.98408415,1254.8,1254.5,24.51823062]
[1672892955139,14.98408415,1254.8,1254.5,16.54693062]
[1672892955405,30.92353415,1254.8,1254.5,0.60511062]
[1672892955601,30.92353415,1254.8,1254.5,0.5567052]
[1672892956427,38.89344415,1254.8,1254.5,0.5567052]
[1672892956578,45.15751923,1254.8,1254.5,0.5567052]
[1672892957636,45.75561923,1254.8,1254.5,0.5567052]
[1672892957897,8.68523705,1254.7,1254.5,0.5567052]
[1672892958210,7.97066,1254.6,1254.5,0.5567052]
[1672892958378,8.03055601,1254.6,1254.5,0.5567052]
[1672892958587,0.05989601,1254.6,1254.5,0.5567052]
[1672892958810,20.18562306,1254.7,1254.5,0.5567052]
[1672892959011,17.28524311,1254.7,1254.5,0.5567052]
[1672892959430,9.31515311,1254.7,1254.5,0.55344489]
[1672892959641,17.28521311,1254.7,1254.5,0.55344489]
[1672892960049,25.25527311,1254.7,1254.5,0.55344489]
[1672892960177,33.22533311,1254.7,1254.5,0.55344489]
[1672892960631,17.28521311,1254.7,1254.5,0.55344489]
[1672892961022,5.12991606,1254.7,1254.5,0.55344489]
[1672892961440,9.31515311,1254.7,1254.5,0.55344489]
[1672892961680,17.28523311,1254.7,1254.5,0.55344489]
[1672892961862,13.09999606,1254.7,1254.5,0.55344489]
[1672892963235,17.28523311,1254.7,1254.5,0.55344489]
[1672892963451,13.09999606,1254.7,1254.5,0.55344489]
[1672892963787,5.12991606,1254.7,1254.5,0.55344489]
[1672892964095,13.10000606,1254.7,1254.5,0.55344489]
[1672892966776,21.07009606,1254.7,1254.5,0.55344489]
[1672892967143,29.04018606,1254.7,1254.5,0.55344489]
[1672892967926,21.07009606,1254.7,1254.5,0.55344489]
[1672892968134,29.04012606,1254.7,1254.5,0.55344489]
[1672892968347,29.04006606,1254.7,1254.5,0.55344489]
[1672892968699,29.04000606,1254.7,1254.5,0.55344489]
[1672892968910,21.06997606,1254.7,1254.5,0.55344489]
[1672892969469,29.04000606,1254.7,1254.5,0.55344489]
[1672892969772,33.22524311,1254.7,1254.5,0.55344489]
[1672892969998,25.25521311,1254.7,1254.5,0.55344489]
[1672892970290,5.12991606,1254.7,1254.5,0.55344489]
[1672892970661,5.12991606,1254.7,1254.5,8.52463489]
[1672892970872,5.12991606,1254.7,1254.5,8.57304031]
[1672892973372,9.31515311,1254.7,1254.5,8.57304031]
[1672892973520,9.31515311,1254.7,1254.5,0.60185031]
[1672892973868,5.12991606,1254.7,1254.5,0.55344489]
[1672892983208,9.62991606,1254.7,1254.5,0.54959571]
[1672892984618,5.12991606,1254.7,1254.5,0.54959571]
[1672892985399,5.1275018,1254.7,1254.5,0.54959571]
[1672892988817,9.31273885,1254.7,1254.5,0.54959571]
[1672892994292,9.36273885,1254.7,1254.5,0.54959571]
[1672892994510,9.31273885,1254.7,1254.5,0.54959571]
[1672892996309,9.36273885,1254.7,1254.5,0.54959571]
[1672892996470,9.31273885,1254.7,1254.5,0.54959571]
[1672892999202,17.28282885,1254.7,1254.5,0.54959571]
[1672893000373,9.31273885,1254.7,1254.5,0.54959571]
[1672893001028,9.91083885,1254.7,1254.5,0.54959571]
[1672893002143,9.91083885,1254.7,1254.5,8.52079571]
[1672893002419,9.91083885,1254.7,1254.5,8.56920113]
[1672893002584,9.31273885,1254.7,1254.5,8.56920113]
[1672893003107,4.2427188,1254.7,1254.5,16.54050113]
[1672893003317,4.18523705,1254.7,1254.5,8.56920113]
[1672893005777,4.18523705,1254.7,1254.5,0.59800113]
[1672893005963,4.18523705,1254.7,1254.5,0.54959571]
[1672893006405,8.02233111,1254.7,1254.5,0.54959571]
[1672893006620,8.07981286,1254.7,1254.5,0.54959571]
[1672893007249,8.07981286,1254.7,1254.5,0.54628863]
[1672893007567,12.57981286,1254.7,1254.5,0.54628863]
[1672893007965,8.07981286,1254.7,1254.5,0.54628863]
[1672893008730,4.2427188,1254.7,1254.5,0.54628863]
[1672893008942,16.28306179,1254.8,1254.5,16.48815863]
[1672893008943,14.98386932,1254.8,1254.5,16.48815863]
[1672893009253,14.98386932,1254.8,1254.5,0.59469405]
[1672893009254,22.95351932,1254.8,1254.5,0.59469405]
[1672893009405,22.95351932,1254.8,1254.5,0.54628863]
[1672893009614,28.71678138,1254.8,1254.5,0.54628863]
[1672893010877,28.68368138,1254.8,1254.5,0.54628863]
[1672893011248,28.68368138,1254.8,1254.5,8.51756863]
[1672893011460,28.68368138,1254.8,1254.5,8.56597405]
[1672893012362,22.92041932,1254.8,1254.5,8.56597405]
[1672893012915,4.5,1254.7,1254.5,8.56597405]
[1672893013223,22.92041932,1254.8,1254.5,8.56597405]
[1672893016407,14.95076932,1254.8,1254.5,16.53727405]
[1672893016702,38.85937932,1254.8,1254.5,0.59469405]
[1672893016878,4.5,1254.7,1254.5,0.54628863]
[1672893017280,22.92015932,1254.8,1254.5,0.54628863]
[1672893017490,22.92015932,1254.8,1254.5,8.51753863]
[1672893017700,22.92015932,1254.8,1254.5,8.56594405]
[1672893020260,28.68007638,1254.8,1254.5,8.56594405]
[1672893021104,4.5,1254.7,1254.5,8.56594405]
[1672893021548,22.92015932,1254.8,1254.5,8.56594405]
[1672893021780,14.95076932,1254.8,1254.5,16.53724405]
[1672893023712,14.95076932,1254.8,1254.5,16.53524405]
[1672893023921,14.95076932,1254.8,1254.5,16.53724405]
[1672893025346,22.92016932,1254.8,1254.5,8.56594405]
[1672893026708,28.68009338,1254.8,1254.5,8.56594405]
[1672893032566,28.68009338,1254.8,1254.5,8.991762]
[1672893034161,29.27819338,1254.8,1254.5,8.991762]
[1672893035423,29.27819338,1254.8,1254.5,8.9886288]
[1672893039090,21.30879338,1254.8,1254.5,16.9599288]
[1672893043673,4.5,1254.7,1254.5,8.9886288]
[1672893043847,7.87782234,1254.7,1254.5,8.9886288]
[1672893044061,4.55748175,1254.7,1254.5,8.9886288]
[1672893044264,4.5,1254.7,1254.5,8.9886288]
[1672893044497,29.27822338,1254.8,1254.5,8.9886288]
[1672893045722,21.30879338,1254.8,1254.5,16.9599288]
[1672893046148,20.71069338,1254.8,1254.5,16.9599288]
[1672893052870,20.71069338,1254.8,1254.5,8.9886288]
[1672893053088,28.68009338,1254.8,1254.5,8.9886288]
[1672893053310,36.64949338,1254.8,1254.5,1.0173788]
[1672893053521,36.64949338,1254.8,1254.5,0.96897338]
[1672893055875,28.68009338,1254.8,1254.5,0.96897338]
[1672893056232,29.27819338,1254.8,1254.5,0.96897338]
[1672893058404,37.24759338,1254.8,1254.5,0.96897338]
[1672893058543,4.18523705,1254.7,1254.5,0.96897338]
[1672893058962,4.18523705,1254.7,1254.5,8.94011338]
[1672893059169,15.54666989,1254.8,1254.5,11.48165168]
[1672893059436,15.54666989,1254.8,1254.5,19.45295168]
[1672893059646,14.94856989,1254.8,1254.5,19.45295168]
[1672893060027,14.94856989,1254.8,1254.5,19.44970443]
[1672893060904,14.94856989,1254.8,1254.5,11.47840443]
[1672893061062,19.91133401,1254.8,1254.5,8.98527155]
[1672893061280,27.88078401,1254.8,1254.5,8.98527155]
[1672893064348,23.69554696,1254.8,1254.5,8.98527155]
[1672893065002,27.88078401,1254.8,1254.5,8.98527155]
[1672893065814,19.91133401,1254.8,1254.5,8.98527155]
[1672893068119,15.77609696,1254.8,1254.5,8.98527155]
[1672893068330,15.72609696,1254.8,1254.5,8.98527155]
[1672893068543,16.32419696,1254.8,1254.5,8.98527155]
[1672893072243,16.37419696,1254.8,1254.5,8.98527155]
[1672893072459,16.32419696,1254.8,1254.5,8.98527155]
[1672893073020,16.32419696,1254.8,1254.5,1.01413155]
[1672893073021,1.913,1254.6,1254.5,1.01413155]
[1672893073163,18.46436365,1254.6,1254.5,0.96572613]
[1672893073378,18.5218454,1254.6,1254.5,0.96572613]
[1672893074487,18.5218454,1254.6,1254.5,0.42581795]
[1672893075641,26.4925054,1254.6,1254.5,0.42581795]
[1672893076484,16.6088454,1254.6,1254.5,0.42581795]
[1672893077737,8.6381854,1254.6,1254.5,0.42581795]
[1672893077949,0.6675254,1254.6,1254.5,0.42581795]
[1672893078122,0.61004365,1254.6,1254.5,0.42581795]
[1672893079280,9.92622118,1254.7,1254.5,0.42581795]
[1672893081391,9.92622118,1254.7,1254.5,0.9126796]
[1672893081606,0.05968118,1254.7,1254.5,0.9126796]
[1672893081874,0.00219943,1254.7,1254.5,8.8838596]
[1672893082088,0.00219943,1254.7,1254.5,8.93226502]
[1672893082759,0.00219943,1254.7,1254.5,16.90356502]
[1672893083083,0.00219943,1254.7,1254.5,20.18823252]
[1672893085561,0.00219943,1254.7,1254.5,12.21693252]
[1672893086139,0.00219943,1254.7,1254.5,8.93226502]
[1672893086924,0.00219943,1254.7,1254.5,13.43226502]
[1672893087499,0.00219943,1254.7,1254.5,8.93226502]
[1672893087932,0.00219943,1254.7,1254.5,11.43226502]
[1672893088347,0.00219943,1254.7,1254.5,19.40356502]
[1672893088557,0.00219943,1254.7,1254.5,22.14107652]
[1672893088818,0.00219943,1254.7,1254.5,19.64107652]
[1672893089560,0.00219943,1254.7,1254.6,4.5]
[1672893092935,0.00219943,1254.7,1254.5,0.47158858]
[1672893093083,0.00219943,1254.7,1254.5,0.42318316]
[1672893093866,18.73276284,1254.8,1254.5,8.39441316]
[1672893094189,23.99813683,1254.8,1254.5,8.44281858]
[1672893104257,23.99813683,1254.8,1254.5,0.47158858]
[1672893104465,23.99813683,1254.8,1254.5,0.42318316]
[1672893105527,24.59623683,1254.8,1254.5,0.41950264]
[1672893105744,32.56601683,1254.8,1254.5,0.41950264]
[1672893109207,4.5,1254.7,1254.5,0.41950264]
[1672893109574,32.56601683,1254.8,1254.5,0.41950264]
[1672893111466,24.59623683,1254.8,1254.5,0.41950264]
[1672893111698,24.59623683,1254.8,1254.5,8.39072264]
[1672893112010,24.59623683,1254.8,1254.5,8.43912806]
[1672893117027,24.59623683,1254.8,1254.5,0.46790806]
[1672893117194,28.78147388,1254.8,1254.5,0.41950264]
[1672893117404,36.75113388,1254.8,1254.5,0.41950264]
[1672893119106,4.18523705,1254.7,1254.5,0.41950264]
[1672893119463,15.94132,1254.6,1254.5,0.41950264]
[1672893119617,23.96946175,1254.6,1254.5,0.41950264]
[1672893120077,8.02814175,1254.6,1254.5,0.41950264]
[1672893120829,0.05748175,1254.6,1254.5,0.41950264]
[1672893120998,12.69103114,1254.7,1254.5,0.41950264]
[1672893121672,4.72086114,1254.7,1254.5,0.41950264]
[1672893121876,4.66337939,1254.7,1254.5,0.41950264]
[1672893125006,26.70217644,1254.7,1254.5,0.41950264]
[1672893125223,27.35775819,1254.7,1254.5,0.41950264]
[1672893125535,19.38967762,1254.7,1254.5,0.41950264]
[1672893125688,15.20444057,1254.7,1254.5,0.41950264]
[1672893125874,15.20438057,1254.7,1254.5,0.41950264]
[1672893126967,23.17460057,1254.7,1254.5,0.41950264]
[1672893128867,23.17460057,1254.7,1254.5,0.41639725]
[1672893129702,27.35983762,1254.7,1254.5,0.41639725]
[1672893129875,4.5,1254.6,1254.5,0.41639725]
[1672893130086,35.33023762,1254.7,1254.5,0.41639725]
[1672893130297,31.14500057,1254.7,1254.5,0.41639725]
[1672893131575,23.17460057,1254.7,1254.5,0.41639725]
[1672893131997,4.5,1254.6,1254.5,0.41639725]
[1672893132189,23.17460057,1254.7,1254.5,0.41639725]
[1672893134064,4.5,1254.6,1254.5,0.41639725]
[1672893134310,8.06450006,1254.6,1254.5,0.41639725]
[1672893134523,16.09264181,1254.6,1254.5,0.41639725]
[1672893135177,11.59264181,1254.6,1254.5,0.41639725]
[1672893138020,11.64264181,1254.6,1254.5,0.41639725]
[1672893138320,11.59264181,1254.6,1254.5,0.41639725]
[1672893145421,3.62198181,1254.6,1254.5,0.41639725]
[1672893145633,3.56450006,1254.6,1254.5,0.41639725]
[1672893147299,11.53516006,1254.6,1254.5,0.41639725]
[1672893147567,11.59264181,1254.6,1254.5,0.41639725]
[1672893153241,11.59264181,1254.6,1254.5,0.41295896]
[1672893160558,11.64264181,1254.6,1254.5,0.41295896]
[1672893160768,11.59264181,1254.6,1254.5,0.41295896]
[1672893168290,15.77787886,1254.6,1254.5,0.41295896]
[1672893168645,11.59264181,1254.6,1254.5,0.41295896]
[1672893176986,3.67198181,1254.6,1254.5,0.41295896]
[1672893177299,22.14099819,1254.7,1254.5,0.40945079]
[1672893177570,30.11102819,1254.7,1254.5,0.40945079]
[1672893180234,30.10796184,1254.7,1254.5,0.40945079]
[1672893181337,4.5,1254.6,1254.5,0.40945079]
[1672893182472,4.50219943,1254.6,1254.5,0.40945079]
[1672893182673,8.76027756,1254.6,1254.5,0.40945079]
[1672893182890,16.78841931,1254.6,1254.5,0.40945079]
[1672893184463,4.31555988,1254.6,1254.5,0.40945079]
[1672893184669,30.10809184,1254.7,1254.5,0.40945079]
[1672893184890,38.07836184,1254.7,1254.5,0.40945079]
[1672893185572,4.5,1254.6,1254.5,0.40945079]
[1672893186204,12.47066,1254.6,1254.5,0.40945079]
[1672893186386,17.58304393,1254.6,1254.5,0.40945079]
[1672893187565,13.08304393,1254.6,1254.5,0.40945079]
[1672893188890,8.02814175,1254.6,1254.5,0.40945079]
[1672893189621,12.52814175,1254.6,1254.5,0.40945079]
[1672893190831,8.02814175,1254.6,1254.5,0.40945079]
[1672893191619,0.05748175,1254.6,1254.5,0.40945079]
[1672893191973,46.04883184,1254.7,1254.5,0.40945079]
[1672893193598,4.5,1254.6,1254.5,0.40945079]
[1672893195242,16.81273706,1254.6,1254.5,0.40945079]
[1672893195408,16.87021881,1254.6,1254.5,0.40945079]
[1672893198244,12.37021881,1254.6,1254.5,0.40945079]
[1672893200431,12.37021881,1254.6,1254.3,36.22960823]
[1672893200687,8.02814175,1254.6,1254.3,30.90220823]
[1672893200973,12.2133788,1254.6,1254.3,30.90220823]
[1672893201671,12.2633788,1254.6,1254.3,30.90220823]
[1672893201865,12.2133788,1254.6,1254.3,30.90220823]
[1672893202615,12.2133788,1254.6,1254.3,16.90220823]
[1672893203127,12.2133788,1254.6,1254.3,30.90020823]
[1672893203337,12.2133788,1254.6,1254.3,35.59121373]
[1672893204407,8.02814175,1254.6,1254.3,35.59121373]
[1672893205457,0.05748175,1254.6,1254.3,35.59121373]
[1672893205650,46.04880184,1254.7,1254.3,35.59121373]
[1672893205823,4.5,1254.6,1254.3,30.90220823]
[1672893207091,45.45290127,1254.7,1254.3,30.90220823]
[1672893209985,4.5,1254.6,1254.3,30.90220823]
[1672893210193,12.4707,1254.6,1254.3,30.90220823]
[1672893210409,12.52818175,1254.6,1254.3,30.90220823]
[1672893210938,12.52818175,1254.6,1254.3,35.59141373]
[1672893211103,8.02818175,1254.6,1254.3,35.59141373]
[1672893212817,18.14578175,1254.6,1254.3,35.59141373]
[1672893218442,18.14578175,1254.6,1254.3,27.61913373]
[1672893218853,18.14578175,1254.6,1254.3,35.59166373]
[1672893220366,8.02818175,1254.6,1254.3,35.59166373]
[1672893221209,12.2134188,1254.6,1254.3,35.59166373]
[1672893221426,8.02818175,1254.6,1254.3,35.59166373]
[1672893223194,12.2134188,1254.6,1254.3,35.59166373]
[1672893223858,8.02818175,1254.6,1254.3,35.59166373]
[1672893224481,0.05748175,1254.6,1254.3,43.56423373]
[1672893224820,45.45297127,1254.7,1254.3,43.56423373]
[1672893225038,45.45297127,1254.7,1254.3,38.87502823]
[1672893225389,45.45297127,1254.7,1254.3,30.90245823]
[1672893225603,45.45297127,1254.7,1254.3,22.92992823]
[1672893226123,45.45297127,1254.7,1254.3,30.90244823]
[1672893226339,45.45297127,1254.7,1254.3,22.90244823]
[1672893228542,4.5,1254.6,1254.3,22.90244823]
[1672893228793,12.47074,1254.6,1254.3,27.59166073]
[1672893228964,8.02822175,1254.6,1254.3,27.59166073]
[1672893237433,0.05748175,1254.6,1254.5,22.0]
[1672893237606,4.58148814,1254.8,1254.5,37.99100542]
[1672893237811,4.58148814,1254.8,1254.5,22.04840542]
[1672893237812,14.55146508,1254.8,1254.5,22.04840542]
[1672893238072,20.44035,1254.7,1254.5,22.04840542]
[1672893238235,20.49783175,1254.7,1254.5,22.04840542]
[1672893238443,20.49783175,1254.7,1254.5,0.04840542]
[1672893238765,16.03245143,1254.7,1254.4,22.04840542]
[1672893238944,16.03245143,1254.7,1254.4,0.04840542]
[1672893238945,1.906,1254.5,1254.4,0.04840542]
[1672893239156,1.906,1254.5,1254.3,0.92992823]
[1672893239157,18.05168656,1254.5,1254.3,0.92992823]
[1672893239472,9.88493,1254.4,1254.3,0.88152281]
[1672893239613,9.94241175,1254.4,1254.3,0.88152281]
[1672893239822,17.88427143,1254.4,1254.3,0.88152281]
[1672893240031,25.85620143,1254.4,1254.3,0.88152281]
[1672893240243,33.82813143,1254.4,1254.3,0.88152281]
[1672893241561,33.83033086,1254.4,1254.3,0.88152281]
[1672893245091,34.23152188,1254.4,1254.3,0.88152281]
[1672893246343,34.23152188,1254.4,1254.3,0.87100451]
[1672893249826,29.73152188,1254.4,1254.3,0.87100451]
[1672893253746,35.62567139,1254.4,1254.3,0.87100451]
[1672893253964,40.63920844,1254.4,1254.3,0.87100451]
[1672893254506,40.9984069,1254.4,1254.3,0.87100451]
[1672893255391,45.9984069,1254.4,1254.3,0.87100451]
[1672893255601,47.8944069,1254.4,1254.3,0.87100451]
[1672893258764,56.88916985,1254.4,1254.3,4.51e-06]
[1672893258975,70.78566985,1254.4,1254.3,4.51e-06]
[1672893259199,74.95975809,1254.4,1254.3,4.51e-06]
[1672893260877,82.93168809,1254.4,1254.3,4.51e-06]
[1672893261091,82.93160759,1254.4,1254.3,4.51e-06]
[1672893263488,82.93160759,1254.4,1254.2,0.0001213]
[1672893263698,17.68,1254.2,1254.1,0.00092109]
[1672893263909,72.37371217,1254.2,1254.1,0.00092109]
[1672893264178,72.73291063,1254.2,1254.1,0.00092109]
[1672893264544,83.55921063,1254.2,1254.1,0.00092109]
[1672893264815,88.55921063,1254.2,1254.1,0.00092109]
[1672893264970,89.94067113,1254.2,1254.1,0.00092109]
[1672893266071,100.03721063,1254.2,1254.1,0.00092109]
[1672893266292,97.3893814,1254.2,1254.1,0.00092109]
[1672893266589,101.55924943,1254.2,1254.1,0.00092109]
[1672893266905,101.5592211,1254.2,1254.1,0.00092109]
[1672893267128,97.3893814,1254.2,1254.1,0.00092109]
[1672893267316,101.55944596,1254.2,1254.1,0.00092109]
[1672893267487,101.56164539,1254.2,1254.1,0.00092109]
[1672893272385,90.10164539,1254.2,1254.1,0.00092109]
[1672893272551,85.10164539,1254.2,1254.1,0.00092109]
[1672893273649,90.10164539,1254.2,1254.1,0.00092109]
[1672893274514,91.48310589,1254.2,1254.1,0.00092109]
[1672893275030,87.31304133,1254.2,1254.1,0.00092109]
[1672893275253,91.48310589,1254.2,1254.1,0.00092109]